bitfinex/quotes_ETHUSD_20240922
["timestamp","ask_amount","ask_price","bid_price","bid_amount"]
[1727002505368,0.0378844,2583.5,2583.4,9.04434889]
[1727002506661,0.0378844,2583.5,2583.4,7.42086]
[1727002506865,2.4621844,2583.5,2583.4,7.42086]
[1727002507869,2.4621844,2583.5,2583.4,3.87086]
[1727002510329,2.70840284,2583.5,2583.4,3.87086]
[1727002510665,2.76488616,2583.5,2583.4,3.87086]
[1727002512768,2.51866772,2583.5,2583.4,3.87086]
[1727002514970,2.4243,2583.4,2583.1,3.87124]
[1727002515158,2.4243,2583.2,2582.8,0.40317522]
[1727002515356,2.4243,2583.0,2582.7,3.87191]
[1727002515678,2.47889493,2582.9,2582.3,7.38]
[1727002515851,2.47889493,2582.9,2582.4,3.87226]
[1727002515852,2.4243,2582.7,2582.4,3.87226]
[1727002516056,2.4243,2582.7,2582.6,3.87206]
[1727002517680,2.66673,2582.7,2582.6,3.87206]
[1727002517881,2.4243,2582.7,2582.6,3.87206]
[1727002518559,2.4243,2582.7,2582.6,4.42206]
[1727002527997,2.3927,2583.4,2583.1,3.87117]
[1727002532710,2.3927,2583.4,2583.3,3.87101]
[1727002532875,2.3927,2583.4,2583.2,3.87109]
[1727002533220,2.3927,2583.4,2583.2,3.87116]
[1727002533393,2.3927,2583.4,2583.1,3.87119]
[1727002533714,2.63575844,2583.4,2583.1,3.87119]
[1727002533917,2.63575844,2583.4,2583.2,3.87116]
[1727002536429,2.63575844,2583.4,2583.3,3.87101]
[1727002541038,2.63575844,2583.4,2583.2,3.87115]
[1727002541946,2.58051374,2583.3,2583.2,3.87115]
[1727002545549,2.84235355,2583.3,2583.0,3.87146]
[1727002545710,2.482,2583.2,2582.6,11.25201]
[1727002545910,4.23137555,2583.3,2582.6,7.38]
[1727002545911,3.87156,2583.0,2582.6,7.38]
[1727002546110,3.87156,2583.0,2582.3,7.74483]
[1727002546111,2.482,2582.7,2582.3,7.74483]
[1727002546340,2.482,2582.6,2582.1,11.25268]
[1727002546669,2.57877398,2582.6,2582.4,0.40472585]
[1727002546909,2.57877398,2582.6,2582.2,3.87266]
[1727002547131,2.482,2582.5,2582.0,3.87286]
[1727002547603,0.09681611,2582.4,2582.0,3.87286]
[1727002547764,2.482,2582.3,2582.0,3.87286]
[1727002547963,2.57886458,2582.3,2582.0,3.87286]
[1727002548214,2.57886458,2582.3,2582.1,3.8728]
[1727002548398,2.57886458,2582.3,2582.2,3.87266]
[1727002550967,0.09686458,2582.3,2582.2,3.87266]
[1727002551390,2.482,2582.5,2582.3,3.8724]
[1727002551866,2.482,2582.5,2582.4,3.87236]
[1727002553508,2.57854584,2582.5,2582.4,3.87236]
[1727002559126,0.09654584,2582.5,2582.4,5.196836]
[1727002559340,2.277,2582.9,2582.8,3.87176]
[1727002564401,2.277,2583.2,2582.7,3.8719]
[1727002564583,2.277,2583.2,2582.7,4.4908]
[1727002565866,2.277,2583.2,2583.1,3.87131]
[1727002566872,2.277,2583.4,2583.3,3.8709]
[1727002571663,2.36884573,2583.4,2583.3,3.8709]
[1727002581574,0.09184573,2583.4,2583.3,3.8709]
[1727002588299,0.09184573,2583.4,2583.1,3.87118]
[1727002588300,2.3385,2583.3,2583.1,3.87118]
[1727002588598,0.09178598,2583.2,2583.1,3.87118]
[1727002589001,2.58532301,2583.3,2583.1,3.87118]
[1727002589315,2.58532301,2583.3,2583.2,3.87116]
[1727002591580,2.58532301,2583.3,2583.0,3.87132]
[1727002591795,2.58532301,2583.3,2583.1,3.87127]
[1727002592082,0.2585323,2583.2,2583.0,3.87132]
[1727002592279,2.3385,2583.1,2583.0,7.7427]
[1727002593312,2.3385,2583.4,2583.0,3.87132]
[1727002593622,2.3385,2583.4,2583.2,7.74224]
[1727002593926,2.3385,2583.4,2583.2,3.87107]
[1727002597283,2.3385,2583.4,2583.0,3.87137]
[1727002597597,3.55663783,2583.4,2583.0,3.87139]
[1727002597919,3.55663783,2583.4,2583.0,7.74277]
[1727002598419,2.3502,2583.3,2582.9,3.8716]
[1727002598595,2.3502,2583.2,2582.9,3.87153]
[1727002598797,2.3502,2583.2,2582.9,7.74306]
[1727002598994,2.3502,2583.2,2582.9,3.87153]
[1727002599205,2.3502,2583.2,2583.1,3.87131]
[1727002599381,2.95982973,2583.2,2583.1,3.87131]
[1727002599617,2.95982973,2583.2,2582.9,7.743]
[1727002599782,2.95982973,2583.2,2583.0,3.87133]
[1727002601291,2.3502,2583.2,2583.0,3.87133]
[1727002601516,1.61948477,2583.4,2582.4,7.38]
[1727002601517,3.56833783,2583.4,2583.1,7.74253]
[1727002601822,3.56833783,2583.4,2583.1,3.87122]
[1727002602199,3.56833783,2583.4,2583.0,6.12766]
[1727002602810,3.56833783,2583.4,2583.0,3.87146]
[1727002603016,0.9096427,2583.3,2583.0,3.87146]
[1727002603334,2.12778053,2583.3,2583.0,3.87146]
[1727002605419,1.21813783,2583.3,2583.1,3.87124]
[1727002605789,1.21813783,2583.2,2583.1,3.87124]
[1727002606425,1.21813783,2583.3,2583.1,3.87124]
[1727002606613,1.21813783,2583.2,2583.1,3.87124]
[1727002607237,1.21813783,2583.3,2583.1,3.87124]
[1727002607857,1.21813783,2583.2,2583.1,3.87124]
[1727002609744,1.21813783,2583.2,2583.0,3.87146]
[1727002610014,1.21813783,2583.1,2583.0,3.87146]
[1727002610659,1.21813783,2583.2,2583.0,3.87146]
[1727002611248,1.21813783,2583.1,2583.0,3.87146]
[1727002612360,1.21813783,2583.2,2583.0,3.87146]
[1727002612531,1.21813783,2583.1,2583.0,3.87146]
[1727002613026,1.61948477,2583.3,2583.0,3.87146]
[1727002613027,1.21813783,2583.2,2583.0,3.87146]
[1727002613716,1.21813783,2583.1,2583.0,3.87146]
[1727002614554,1.21813783,2583.2,2583.0,3.87146]
[1727002616744,0.09166926,2583.1,2583.0,3.87146]
[1727002617161,0.09166926,2583.1,2582.9,3.8715]
[1727002617327,2.371,2583.0,2582.9,3.8715]
[1727002617858,2.46261732,2583.0,2582.9,3.8715]
[1727002619876,0.09161732,2583.0,2582.9,3.8715]
[1727002620593,3.63943783,2583.2,2583.0,7.74282]
[1727002620880,1.21813783,2583.2,2583.0,7.74276]
[1727002621295,1.21813783,2583.3,2583.1,3.87131]
[1727002621445,1.21813783,2583.2,2583.1,3.87131]
[1727002623176,1.21813783,2583.3,2583.2,3.87116]
[1727002623395,1.21813783,2583.3,2583.2,6.33206]
[1727002623546,1.21813783,2583.4,2583.3,3.87101]
[1727002623750,1.25602223,2583.5,2583.4,3.87086]
[1727002626676,1.25602223,2583.5,2583.2,6.33194]
[1727002627077,1.25602223,2583.5,2583.3,3.87091]
[1727002627483,1.25602223,2583.5,2583.3,7.74183]
[1727002627795,1.25602223,2583.5,2583.4,3.87086]
[1727002628858,0.0378844,2583.5,2583.4,6.33176]
[1727002629048,0.0378844,2583.5,2583.4,7.352035]
[1727002629252,0.0378844,2583.5,2583.4,7.69546438]
[1727002629464,0.0378844,2583.5,2583.4,7.69537385]
[1727002629679,0.0378844,2583.5,2583.4,7.352035]
[1727002629860,0.0378844,2583.5,2583.4,7.69536572]
[1727002631458,0.0378844,2583.5,2583.4,7.352035]
[1727002631658,0.12705746,2583.5,2583.4,7.352035]
[1727002631879,0.0378844,2583.5,2583.4,7.352035]
[1727002632094,0.12707087,2583.5,2583.4,7.352035]
[1727002632257,0.0378844,2583.5,2583.4,7.352035]
[1727002633295,0.12700381,2583.5,2583.4,7.352035]
[1727002633592,0.0378844,2583.5,2583.4,7.352035]
[1727002634099,0.12690002,2583.5,2583.4,7.352035]
[1727002634255,0.0378844,2583.5,2583.4,7.352035]
[1727002634455,0.12683557,2583.5,2583.4,7.352035]
[1727002634670,0.0378844,2583.5,2583.4,7.352035]
[1727002634892,0.12703235,2583.5,2583.4,7.352035]
[1727002635090,0.0378844,2583.5,2583.4,7.352035]
[1727002635272,0.12703982,2583.5,2583.4,7.352035]
[1727002635597,0.12705323,2583.5,2583.4,7.352035]
[1727002638265,0.12705323,2583.5,2583.4,4.891135]
[1727002644531,0.12705323,2583.5,2583.4,3.87086]
[1727002651582,0.12705323,2583.5,2583.4,4.42086]
[1727002651786,0.12705323,2583.5,2583.4,6.82896]
[1727002652441,0.12705323,2583.5,2583.4,9.90637431]
[1727002652615,0.0378844,2583.5,2583.4,10.17162564]
[1727002652797,0.0378844,2583.5,2583.4,11.5758872]
[1727002654549,0.0378844,2583.5,2583.4,11.57578322]
[1727002654703,0.0378844,2583.5,2583.4,11.23322156]
[1727002656430,0.0378844,2583.5,2583.4,8.23322156]
[1727002662409,0.0378844,2583.5,2583.4,3.87086]
[1727002663172,2.5247753,2583.5,2583.4,3.87086]
[1727002663379,2.4354844,2583.5,2583.4,3.87086]
[1727002663606,2.52480774,2583.5,2583.4,3.87086]
[1727002668334,0.12720774,2583.5,2583.4,3.87086]
[1727002670034,0.12720774,2583.5,2583.4,4.42086]
[1727002670379,0.12720774,2583.5,2583.4,7.78894732]
[1727002670689,0.0378844,2583.5,2583.4,7.78894732]
[1727002670912,0.1271299,2583.5,2583.4,7.78894732]
[1727002671133,0.0378844,2583.5,2583.4,7.78894732]
[1727002671514,0.12720487,2583.5,2583.4,7.78894732]
[1727002673897,0.0378844,2583.5,2583.4,8.41546892]
[1727002674118,0.0378844,2583.5,2583.4,8.33805867]
[1727002677097,0.0378844,2583.5,2583.4,7.78894732]
[1727002677313,0.0378844,2583.5,2583.4,7.86635349]
[1727002677842,0.0378844,2583.5,2583.4,8.41542723]
[1727002678037,0.0378844,2583.5,2583.4,8.33802106]
[1727002678543,0.0378844,2583.5,2583.4,7.78894732]
[1727002679033,0.0378844,2583.5,2583.4,7.86635345]
[1727002680599,0.0378844,2583.5,2583.4,7.78894732]
[1727002681729,0.0378844,2583.5,2583.4,7.86635335]
[1727002681913,0.0378844,2583.5,2583.4,7.78894732]
[1727002683299,0.0378844,2583.5,2583.4,4.42086]
[1727002684107,0.0378844,2583.5,2583.4,3.87086]
[1727002684108,0.12718934,2583.5,2583.4,3.87086]
[1727002685324,0.12718934,2583.5,2583.4,4.42086]
[1727002686637,2.40668934,2583.5,2583.4,3.87086]
[1727002686844,2.76917206,2583.5,2583.4,3.87086]
[1727002714105,2.76917206,2583.5,2583.3,3.871]
[1727002715101,2.76917206,2583.5,2583.3,7.74192]
[1727002715271,2.76917206,2583.5,2583.4,3.87086]
[1727002716295,0.48967206,2583.5,2583.4,3.87086]
[1727002719091,2.4488,2583.4,2583.3,7.74186]
[1727002719288,2.4488,2583.4,2583.3,3.87092]
[1727002719493,2.53794291,2583.4,2583.3,3.87092]
[1727002719759,2.53794291,2583.4,2583.2,3.87109]
[1727002720027,2.9535877,2583.4,2582.9,3.87159]
[1727002720229,2.9535877,2583.4,2583.1,3.87118]
[1727002720586,2.4488,2583.2,2583.1,3.87118]
[1727002721128,2.53763988,2583.2,2583.1,3.87118]
[1727002721327,3.11673061,2583.2,2583.1,3.87118]
[1727002722300,0.08883988,2583.2,2583.1,3.87118]
[1727002722607,4.08258262,2583.4,2583.1,3.87118]
[1727002722823,0.08883988,2583.2,2583.1,3.87118]
[1727002723021,4.08258262,2583.4,2583.1,3.87118]
[1727002723229,0.08883988,2583.2,2583.1,3.87118]
[1727002723430,4.08258262,2583.4,2583.1,3.87118]
[1727002723639,0.08883988,2583.2,2583.1,3.87118]
[1727002723936,3.66693783,2583.4,2583.1,3.87118]
[1727002724123,0.08883988,2583.2,2583.1,3.87118]
[1727002724597,3.66693783,2583.4,2583.1,3.87118]
[1727002724797,0.08883988,2583.2,2583.1,3.87118]
[1727002725025,3.66693783,2583.4,2583.1,3.87118]
[1727002725228,0.08883988,2583.2,2583.1,3.87118]
[1727002725437,0.56867897,2583.3,2583.1,3.87118]
[1727002725635,0.08883988,2583.2,2583.1,3.87118]
[1727002726059,0.56867897,2583.3,2583.0,3.87138]
[1727002726216,0.08883988,2583.2,2583.0,3.87138]
[1727002726536,1.7868168,2583.3,2583.0,3.87138]
[1727002726726,0.08878795,2583.1,2583.0,3.87138]
[1727002726928,1.21813783,2583.3,2583.1,3.87131]
[1727002727136,1.7868168,2583.3,2583.1,3.87131]
[1727002729513,1.7868168,2583.3,2583.1,3.87124]
[1727002729716,1.21813783,2583.3,2583.1,7.74247]
[1727002729998,1.21813783,2583.3,2583.1,7.74243]
[1727002730307,1.21813783,2583.3,2583.1,3.8712]
[1727002730812,1.21813783,2583.3,2583.1,7.74242]
[1727002731710,1.21813783,2583.3,2583.1,3.8712]
[1727002732809,1.21813783,2583.3,2583.1,7.74244]
[1727002733027,3.66693783,2583.4,2583.1,7.74244]
[1727002733341,4.82581183,2583.4,2583.1,7.74244]
[1727002733939,1.21813783,2583.3,2583.1,3.8712]
[1727002734441,1.21813783,2583.3,2583.1,7.74243]
[1727002734943,1.21813783,2583.3,2583.1,3.8712]
[1727002735154,1.21813783,2583.3,2583.1,7.74242]
[1727002735843,1.21813783,2583.3,2583.1,3.8712]
[1727002736736,0.08874474,2583.2,2583.1,3.8712]
[1727002736907,1.21813783,2583.3,2583.1,3.8712]
[1727002737118,0.08874474,2583.2,2583.1,3.8712]
[1727002737354,2.10582924,2583.3,2583.1,3.8712]
[1727002737644,0.08874474,2583.2,2583.1,3.8712]
[1727002738030,2.10582924,2583.3,2583.1,3.8712]
[1727002738251,0.08874474,2583.2,2583.1,3.8712]
[1727002738630,2.10582924,2583.3,2583.1,3.8712]
[1727002738960,2.04018137,2583.2,2582.9,3.8715]
[1727002739261,1.30688257,2583.2,2582.9,3.8715]
[1727002739563,1.30688257,2583.2,2583.0,3.87136]
[1727002740544,2.4729,2583.1,2583.0,3.87136]
[1727002740757,2.56159281,2583.1,2583.0,3.87136]
[1727002744067,2.56159281,2583.1,2582.9,3.87161]
[1727002744229,3.19028349,2583.1,2582.9,3.87161]
[1727002746887,0.08869281,2583.1,2582.9,3.87154]
[1727002747760,3.69103783,2583.3,2583.0,3.87146]
[1727002749333,1.21813783,2583.2,2583.0,3.87146]
[1727002751556,0.08863928,2583.1,2583.0,3.87146]
[1727002759177,1.30677711,2583.1,2583.0,3.87146]
[1727002760461,0.08863928,2583.1,2583.0,3.87146]
[1727002763956,0.08863928,2583.1,2583.0,6.28416]
[1727002764274,1.25602223,2583.5,2583.2,3.87115]
[1727002764486,1.25602223,2583.5,2583.2,6.28385]
[1727002764798,1.25602223,2583.5,2583.4,3.87086]
[1727002766677,1.34493469,2583.5,2583.4,3.87086]
[1727002768811,0.12679686,2583.5,2583.4,3.87086]
[1727002769113,1.34493469,2583.5,2583.4,3.87086]
[1727002772582,0.12679686,2583.5,2583.4,3.87086]
[1727002785560,4.03517664,2583.5,2583.3,3.87089]
[1727002785771,3.73873469,2583.5,2583.3,3.87089]
[1727002785931,3.73873469,2583.5,2583.3,7.74182]
[1727002786356,2.52059686,2583.5,2583.3,3.87089]
[1727002786628,3.73873469,2583.5,2583.4,3.87086]
[1727002786858,4.27455664,2583.5,2583.3,7.7418]
[1727002787163,4.27455664,2583.5,2583.3,3.87089]
[1727002787377,4.27455664,2583.5,2583.3,7.74181]
[1727002788675,4.27455664,2583.5,2583.3,3.87089]
[1727002790175,4.27455664,2583.5,2583.3,7.74181]
[1727002790680,4.27455664,2583.5,2583.4,3.87086]
[1727002797093,1.88075664,2583.5,2583.4,3.87086]
[1727002797240,0.12679686,2583.5,2583.4,3.87086]
[1727002797646,1.34493469,2583.5,2583.4,3.87086]
[1727002797847,0.12679686,2583.5,2583.4,3.87086]
[1727002800777,0.12679686,2583.5,2583.3,2.298]
[1727002802107,1.34493469,2583.5,2583.0,2.3514]
[1727002802407,1.34493469,2583.5,2583.1,0.29014]
[1727002802695,0.12679686,2583.5,2583.1,0.29014]
[1727002803260,1.34493469,2583.5,2583.1,0.29014]
[1727002803757,2.4143,2583.4,2583.0,2.3514]
[1727002803970,3.63243783,2583.4,2582.8,7.7831706]
[1727002804311,3.63243783,2583.4,2582.7,2.305]
[1727002804312,2.4143,2583.0,2582.5,0.60662248]
[1727002804613,2.4143,2583.0,2582.4,9.685]
[1727002804823,2.4143,2583.0,2582.4,10.81584889]
[1727002806309,4.03378477,2583.0,2582.2,2.305]
[1727002806529,3.63243783,2582.8,2582.2,2.305]
[1727002806838,1.21813783,2582.7,2582.2,2.305]
[1727002807424,3.63243783,2582.8,2582.2,2.305]
[1727002807642,2.4143,2582.8,2582.2,3.28124457]
[1727002808198,1.21813783,2582.9,2582.3,0.62744556]
[1727002808502,3.63243783,2583.0,2582.3,0.55]
[1727002808902,2.4143,2583.0,2582.3,0.55]
[1727002809097,2.4143,2583.0,2582.3,0.93312446]
[1727002809303,4.3503,2583.0,2582.3,0.93312446]
[1727002812036,1.21813783,2582.9,2582.2,2.305]
[1727002814312,2.3684,2582.8,2582.2,2.305]
[1727002816040,4.3044,2583.0,2582.2,2.305]
[1727002816242,4.3044,2583.0,2582.3,0.7805]
[1727002816414,1.936,2583.0,2582.4,2.2623]
[1727002816751,1.936,2583.0,2582.6,2.2623]
[1727002817603,0.08861527,2582.9,2582.6,2.2623]
[1727002821004,0.08861527,2582.9,2582.8,2.8541]
[1727002821209,0.08861527,2582.9,2582.8,3.14725297]
[1727002821647,1.936,2583.0,2582.9,2.8541]
[1727002821846,1.936,2583.0,2582.9,2.93152238]
[1727002822008,1.936,2583.0,2582.9,2.8541]
[1727002831563,1.936,2583.0,2582.9,2.93151348]
[1727002831774,1.936,2583.0,2582.9,3.37320163]
[1727002835442,1.936,2583.0,2582.9,3.45061467]
[1727002836790,1.936,2583.0,2582.9,3.37320163]
[1727002841397,1.936,2583.0,2582.9,2.8541]
[1727002843597,1.936,2583.0,2582.9,2.93152041]
[1727002843771,1.936,2583.0,2582.9,2.8541]
[1727002848094,1.936,2583.0,2582.9,2.93152138]
[1727002848586,1.936,2583.0,2582.9,2.8541]
[1727002848757,1.936,2583.0,2582.9,3.17656703]
[1727002850899,1.936,2583.0,2582.9,0.55]
[1727002851094,1.936,2583.0,2582.7,0.55]
[1727002857302,1.936,2583.0,2582.8,2.4438]
[1727002857639,1.936,2583.0,2582.9,0.62741983]
[1727002857785,1.936,2583.0,2582.9,0.55]
[1727002857983,1.936,2583.0,2582.9,0.85712198]
[1727002861521,1.936,2583.0,2582.9,3.12942198]
[1727002862514,1.936,2583.0,2582.9,3.20683951]
[1727002862718,1.936,2583.0,2582.9,4.8303284]
[1727002863075,1.936,2583.0,2582.9,3.20683951]
[1727002863417,1.936,2583.0,2582.9,4.8303284]
[1727002863616,1.936,2583.0,2582.9,5.23446951]
[1727002863924,1.936,2583.0,2582.9,5.23606522]
[1727002864067,1.936,2583.0,2582.9,5.23603327]
[1727002864271,1.936,2583.0,2582.9,3.20683951]
[1727002864807,1.936,2583.0,2582.9,5.23620131]
[1727002864967,1.936,2583.0,2582.9,5.15878378]
[1727002865610,1.936,2583.0,2582.9,3.12942198]
[1727002865826,1.936,2583.0,2582.9,0.85712198]
[1727002867299,1.936,2583.0,2582.9,2.48089872]
[1727002867500,1.936,2583.0,2582.9,4.75319872]
[1727002868101,1.936,2583.0,2582.9,4.8306162]
[1727002868302,1.936,2583.0,2582.9,4.83061663]
[1727002868842,1.936,2583.0,2582.9,4.75319872]
[1727002870372,1.936,2583.0,2582.9,3.12942198]
[1727002871210,1.936,2583.0,2582.9,0.85712198]
[1727002876181,1.936,2583.0,2582.9,2.48089872]
[1727002876385,1.936,2583.0,2582.9,0.85712198]
[1727002876878,1.936,2583.0,2582.9,5.18549316]
[1727002877289,1.936,2583.0,2582.9,5.26291128]
[1727002877778,1.936,2583.0,2582.9,5.18549316]
[1727002878490,1.936,2583.0,2582.9,38.23233791]
[1727002878638,1.936,2583.0,2582.9,38.15492198]
[1727002883075,1.33008,2583.0,2582.9,80.14615258]
[1727002883267,0.0378844,2583.5,2583.2,2.3122]
[1727002883476,0.0378844,2583.5,2583.4,8.29749918]
[1727002883790,0.0378844,2583.5,2583.4,47.953728]
[1727002884002,0.0378844,2583.5,2583.4,82.953728]
[1727002885004,0.0378844,2583.5,2583.4,80.820238]
[1727002885165,0.0378844,2583.5,2583.4,83.25175021]
[1727002885502,0.0378844,2583.5,2583.4,85.85518004]
[1727002886108,0.0378844,2583.5,2583.4,86.74592389]
[1727002886292,0.0378844,2583.5,2583.4,84.31441168]
[1727002886661,0.0378844,2583.5,2583.4,64.61838468]
[1727002886997,0.0378844,2583.5,2583.4,84.63582492]
[1727002887567,0.0378844,2584.3,2583.5,2.3122]
[1727002887904,0.0378844,2584.3,2584.1,3.0]
[1727002888099,2.3839,2584.2,2583.5,5.01668507]
[1727002888406,2.3839,2584.2,2583.6,0.34221797]
[1727002888622,2.3839,2584.2,2583.3,0.34221797]
[1727002888623,2.62607844,2584.2,2583.3,0.34221797]
[1727002888765,2.62607844,2584.2,2583.2,0.34221797]
[1727002888965,2.3839,2584.0,2583.0,0.34221797]
[1727002889363,2.3839,2584.0,2582.9,0.4019097]
[1727002889809,2.3839,2584.0,2583.0,0.34221797]
[1727002889969,2.64650784,2584.0,2583.1,0.41962119]
[1727002890165,0.07808609,2583.9,2583.1,0.34221797]
[1727002890372,0.07808609,2583.9,2583.0,0.2362839]
[1727002890373,0.07808609,2583.9,2583.2,0.41961793]
[1727002890673,0.07808609,2583.9,2583.3,0.89221797]
[1727002890871,0.07808609,2583.9,2583.3,0.55]
[1727002891199,0.07808609,2583.9,2583.4,0.07739778]
[1727002891709,0.07808609,2583.9,2583.3,0.94696179]
[1727002892404,0.07808609,2583.9,2583.1,0.8924495]
[1727002893391,2.3839,2584.0,2583.1,0.8924495]
[1727002894207,2.3839,2584.0,2583.3,0.55]
[1727002894413,0.07788632,2583.9,2583.4,0.07739804]
[1727002894771,2.3839,2584.0,2583.4,0.07739804]
[1727002894970,2.3839,2584.0,2583.5,0.55]
[1727002895278,2.3839,2584.0,2583.7,0.55]
[1727002898343,2.3839,2584.0,2583.5,0.55]
[1727002898503,2.3839,2584.0,2583.7,0.55]
[1727002899404,0.0378844,2584.3,2583.7,0.55]
[1727002899405,2.3335,2584.2,2583.9,0.55]
[1727002899746,0.0378844,2584.3,2584.1,0.55]
[1727002899901,0.0378844,2584.3,2584.0,0.07738205]
[1727002899902,0.0378844,2584.3,2584.2,0.6273786]
[1727002900944,0.0378844,2584.3,2584.2,0.55]
[1727002901145,0.0378844,2584.3,2584.2,0.62737369]
[1727002901351,0.0378844,2584.3,2584.2,0.55]
[1727002902849,0.0378844,2584.3,2584.2,3.92457916]
[1727002904940,0.0378844,2584.3,2584.2,3.92457414]
[1727002905349,0.0378844,2584.3,2584.2,38.92457414]
[1727002905506,0.0378844,2584.3,2584.2,38.84721]
[1727002909523,0.0378844,2584.3,2584.2,3.84721]
[1727002911940,0.0378844,2584.3,2584.2,3.92456964]
[1727002912582,0.0378844,2584.3,2584.2,3.84721]
[1727002913482,0.0378844,2584.3,2584.2,6.26931]
[1727002913780,0.0378844,2584.3,2584.2,37.69974447]
[1727002913992,0.0378844,2584.3,2584.2,34.960054]
[1727002914633,0.0378844,2584.3,2584.2,22.42676]
[1727002914834,0.0378844,2584.3,2584.2,18.22676]
[1727002915561,0.0378844,2584.3,2584.2,17.012599]
[1727002916582,0.0378844,2584.3,2584.2,36.852599]
[1727002916734,0.0378844,2584.3,2584.2,71.852599]
[1727002917275,0.0378844,2584.3,2584.2,72.03234544]
[1727002918950,2.0378844,2585.0,2584.6,2.3289]
[1727002919170,2.0378844,2585.0,2584.8,3.0]
[1727002919478,2.0378844,2585.0,2584.9,0.62734774]
[1727002923229,2.0378844,2585.0,2584.9,0.62735091]
[1727002924838,2.0378844,2585.0,2584.9,25.79625091]
[1727002924988,2.0378844,2585.0,2584.9,25.7189]
[1727002925188,2.0378844,2585.0,2584.9,28.02478791]
[1727002926286,2.0378844,2585.0,2584.9,63.02478791]
[1727002926601,2.0378844,2585.0,2584.9,63.20420113]
[1727002929545,2.0378844,2585.0,2584.9,28.20420113]
[1727002931057,0.87595297,2585.0,2584.9,70.29572913]
[1727002931346,0.87595297,2585.0,2584.9,70.66975369]
[1727002932348,0.25695297,2585.0,2584.9,70.66975369]
[1727002932536,0.00695297,2585.0,2584.9,70.66975369]
[1727002933245,0.00695297,2585.0,2584.9,72.62172913]
[1727002933919,0.00695297,2585.0,2584.9,107.62172913]
[1727002934119,2.4778844,2585.8,2585.1,0.55]
[1727002934342,2.4778844,2585.8,2585.4,0.55]
[1727002934509,2.4778844,2585.8,2585.5,0.07732643]
[1727002934709,2.4778844,2585.8,2585.6,0.55]
[1727002934925,2.4778844,2585.8,2585.7,0.07732673]
[1727002935123,2.4778844,2585.8,2585.7,0.62732673]
[1727002935305,2.4778844,2585.8,2585.7,1.16021673]
[1727002935706,0.0378844,2585.8,2585.7,1.16021673]
[1727002936549,0.0378844,2585.8,2585.7,1.08289]
[1727002936961,0.0378844,2585.8,2585.7,1.16021224]
[1727002938234,0.0378844,2585.8,2585.7,1.08289]
[1727002938441,2.4339844,2585.8,2585.2,3.84]
[1727002938635,2.4339844,2585.8,2584.5,5.45092703]
[1727002938855,2.4339844,2585.8,2584.6,3.84]
[1727002939910,2.4339844,2585.8,2584.8,0.07734342]
[1727002940114,2.4339844,2585.8,2584.8,0.55]
[1727002940309,2.4339844,2585.8,2585.0,0.55]
[1727002942465,2.4339844,2585.8,2584.8,0.55]
[1727002943519,2.4339844,2585.8,2584.9,0.0773482]
[1727002944655,2.4339844,2585.8,2584.9,0.55]
[1727002944860,2.4339844,2585.8,2585.1,0.55]
[1727002945061,2.67738284,2585.8,2585.3,0.55]
[1727002945429,2.2814,2585.6,2585.3,0.55]
[1727002945767,2.2814,2585.4,2585.3,0.55]
[1727002946278,2.35839021,2585.4,2584.7,7.78213665]
[1727002946433,2.35839021,2585.4,2584.5,3.84]
[1727002946434,2.2814,2585.4,2584.5,3.84]
[1727002946638,2.2814,2585.4,2584.6,1.506]
[1727002947740,2.2814,2585.4,2584.7,0.55]
[1727002948166,2.2814,2585.4,2584.9,0.55]
[1727002950442,2.2814,2585.4,2585.1,0.55]
[1727002950643,2.2814,2585.2,2585.1,0.55]
[1727002950885,2.35718284,2585.2,2585.1,0.55]
[1727002951384,2.2814,2585.2,2585.1,0.55]
[1727002957115,2.50954,2585.2,2584.7,0.40238938]
[1727002957282,2.50954,2585.2,2584.4,7.38]
[1727002957817,2.50954,2585.2,2584.1,1.61092703]
[1727002957818,2.50954,2585.2,2584.1,7.38]
[1727002958305,2.50954,2585.2,2584.2,0.07737508]
[1727002958612,2.50954,2585.2,2584.2,2.30359605]
[1727002958769,2.2814,2585.2,2584.2,2.30359605]
[1727002958964,2.2814,2585.2,2584.3,0.55]
[1727002959168,2.2814,2585.2,2584.3,3.55]
[1727002960205,2.2814,2585.2,2584.5,0.55]
[1727002961007,2.2814,2585.2,2584.4,0.55]
[1727002961203,2.2814,2585.2,2584.6,0.55]
[1727002961620,2.2814,2585.2,2584.5,0.55]
[1727002961798,2.2814,2585.2,2584.7,0.55]
[1727002962392,2.2814,2585.2,2584.5,0.55]
[1727002962707,2.2814,2585.2,2584.7,0.55]
[1727002962869,2.2814,2585.2,2584.9,0.55]
[1727002963076,0.07526925,2585.1,2584.9,0.55]
[1727002963301,2.4184,2585.0,2584.9,0.55]
[1727002963477,2.49361736,2585.0,2584.9,0.55]
[1727002967791,2.49361736,2585.0,2584.4,0.55]
[1727002968155,2.4184,2585.0,2584.3,3.55]
[1727002968276,2.4184,2585.0,2584.3,4.69605084]
[1727002968479,2.4184,2585.0,2584.5,0.55]
[1727002968725,2.4184,2585.0,2584.6,0.07736873]
[1727002968873,2.4184,2585.0,2584.7,0.55]
[1727002972520,2.4184,2585.0,2584.9,0.55]
[1727002972827,2.4184,2585.0,2584.7,0.55]
[1727002973027,2.4184,2585.7,2584.7,0.55]
[1727002973197,2.4184,2585.5,2584.9,0.55]
[1727002973384,2.4184,2585.5,2585.1,0.55]
[1727002973725,2.2867,2585.3,2585.1,0.55]
[1727002974128,0.07603606,2585.2,2585.1,0.55]
[1727002974328,2.2867,2585.3,2585.1,0.55]
[1727002974625,0.07528539,2585.2,2585.1,0.55]
[1727002974991,2.2867,2585.3,2585.1,0.55]
[1727002975190,0.07606586,2585.2,2585.1,0.55]
[1727002975483,2.2867,2585.3,2585.1,0.55]
[1727002975688,0.07531519,2585.2,2585.1,0.55]
[1727002976087,2.2867,2585.3,2585.1,0.55]
[1727002978135,0.07535692,2585.2,2585.1,0.55]
[1727002978325,2.2867,2585.3,2585.1,0.55]